fUST/lending_fUST_20250624
["ID","MTS","AMOUNT","RATE_DAILY","PERIOD"]
[367223769,1750705852888,-460.0,0.00020194,2]
[367223770,1750705852898,-460.0,0.00020194,2]
[367223771,1750705852907,-407.1548596,0.00020203,2]
[367223772,1750705852917,-1000.0,0.00020221,2]
[367223773,1750705852925,-1000.0,0.00020221,2]
[367223774,1750705852936,-905.74620349,0.00020221,2]
[367223775,1750705852948,-1000.0,0.00020221,2]
[367223776,1750705852959,-1000.0,0.00020221,2]
[367223777,1750705852969,-500.0,0.00020221,2]
[367223778,1750705852980,-1000.0,0.00020221,2]
[367223779,1750705852992,-1000.0,0.00020221,2]
[367223780,1750705853001,-500.0,0.00020221,2]
[367223781,1750705853011,-1000.0,0.00020221,2]
[367223782,1750705853020,-1000.0,0.00020221,2]
[367223783,1750705853030,-7261.26551565,0.00020284,2]
[367223784,1750705853039,-460.0,0.00020362,2]
[367223785,1750705853050,-460.0,0.00020362,2]
[367223786,1750705853059,-460.0,0.00020362,2]
[367223787,1750705853069,-460.0,0.00020362,2]
[367223788,1750705853078,-302.34670193,0.00020362,2]
[367223789,1750705853087,-460.0,0.00020362,2]
[367223790,1750705853096,-460.0,0.00020362,2]
[367223791,1750705853106,-460.0,0.00020362,2]
[367223792,1750705853116,-3153.08,0.00020362,2]
[367223793,1750705853125,-460.0,0.00020362,2]
[367223794,1750705853135,-460.0,0.00020362,2]
[367223795,1750705853144,-460.0,0.00020362,2]
[367223796,1750705853154,-3394.04,0.00020362,2]
[367223797,1750705853163,-460.0,0.00020362,2]
[367223798,1750705853173,-460.0,0.00020362,2]
[367223799,1750705853182,-460.0,0.00020364,2]
[367223800,1750705853192,-2597.82,0.00020364,2]
[367223801,1750705853202,-945.43,0.00020364,2]
[367223802,1750705853212,-532.01,0.00020364,2]
[367223803,1750705853222,-460.0,0.00020364,2]
[367223804,1750705853231,-2283.35,0.00020364,2]
[367223805,1750705853241,-4030.69,0.00020364,2]
[367223806,1750705853251,-715.61,0.00020364,2]
[367223807,1750705853261,-1930.0,0.00020364,2]
[367223808,1750705853271,-1103.34,0.00020364,2]
[367223809,1750705853280,-1065.33,0.00020364,2]
[367223810,1750705853290,-1037.51,0.00020364,2]
[367223811,1750705853299,-460.0,0.00020364,2]
[367223812,1750705853309,-1305.61,0.00020364,2]
[367223813,1750705853318,-966.44,0.00020364,2]
[367223814,1750705853329,-460.0,0.00020365,2]
[367223815,1750705853338,-460.0,0.00020365,2]
[367223816,1750705853347,-460.0,0.00020365,2]
[367223817,1750705853356,-460.0,0.00020365,2]
[367223818,1750705853367,-2313.07,0.00020365,2]
[367223819,1750705853378,-460.0,0.00020365,2]
[367223820,1750705853387,-961.52,0.00020365,2]
[367223821,1750705853397,-4244.52,0.00020365,2]
[367223822,1750705853407,-460.0,0.00020365,2]
[367223823,1750705853416,-151.0,0.000204,4]
[367223824,1750705853425,-207.4,0.00020418,2]
[367223825,1750705853435,-500.0,0.00020418,2]
[367223826,1750705853446,-500.0,0.00020418,2]
[367223827,1750705853456,-500.0,0.00020418,2]
[367223828,1750705853466,-2628.57092519,0.00020418,2]
[367223829,1750705853477,-500.0,0.00020418,2]
[367223830,1750705853487,-500.0,0.00020418,2]
[367223831,1750705853497,-500.0,0.00020418,2]
[367223832,1750705853507,-500.0,0.00020418,2]
[367223833,1750705853517,-500.0,0.00020418,2]
[367223834,1750705853527,-500.0,0.00020418,2]
[367223835,1750705853537,-500.0,0.00020418,2]
[367223836,1750705853546,-7805.29258856,0.00020421,2]
[367223837,1750705853556,-460.0,0.00020447,2]
[367223838,1750705853567,-460.0,0.00020449,2]
[367223839,1750705853577,-460.0,0.00020449,2]
[367223840,1750705853587,-460.0,0.00020449,2]
[367223841,1750705853597,-460.0,0.00020449,2]
[367223842,1750705853607,-462.37,0.00020449,2]
[367223843,1750705853617,-460.0,0.00020449,2]
[367223844,1750705853627,-460.0,0.00020449,2]
[367223845,1750705853636,-460.0,0.00020449,2]
[367223846,1750705853646,-460.0,0.00020449,2]
[367223847,1750705853656,-733.44,0.00020449,2]
[367223848,1750705853666,-516.12,0.00020449,2]
[367223849,1750705853675,-460.0,0.00020449,2]
[367223850,1750705853685,-460.0,0.00020449,2]
[367223851,1750705853694,-605.98986955,0.00020449,2]
[367223852,1750705853704,-460.0,0.00020449,2]
[367223853,1750705853715,-460.0,0.00020449,2]
[367223854,1750705853724,-460.0,0.00020449,2]
[367223855,1750705853734,-937.41,0.00020449,2]
[367223856,1750705853743,-460.0,0.00020449,2]
[367223857,1750705853754,-460.0,0.00020449,2]
[367223858,1750705853763,-460.0,0.00020449,2]
[367223859,1750705853773,-460.0,0.00020449,2]
[367223860,1750705853782,-460.0,0.00020449,2]
[367223861,1750705853793,-403.0184,0.00020449,2]
[367223862,1750705853802,-1069.7,0.00020449,2]
[367223863,1750705853812,-563.09,0.00020449,2]
[367223864,1750705853822,-460.0,0.00020449,2]
[367223865,1750705853832,-460.0,0.00020449,2]
[367223866,1750705853842,-560.98719148,0.00020449,2]
[367223867,1750705853852,-460.0,0.00020449,2]
[367223868,1750705853862,-803.74,0.00020449,2]
[367223869,1750705853871,-460.0,0.00020449,2]
[367223870,1750705853881,-460.0,0.00020449,2]
[367223871,1750705853891,-672.36,0.00020449,2]
[367223872,1750705853901,-592.07,0.00020449,2]
[367223873,1750705853910,-1629.23,0.00020449,2]
[367223874,1750705853920,-460.0,0.00020449,2]
[367223875,1750705853930,-460.0,0.00020449,2]
[367223876,1750705853939,-756.74,0.00020449,2]
[367223877,1750705853950,-466.31,0.00020449,2]
[367223878,1750705853960,-1072.9,0.00020449,2]
[367223879,1750705853970,-704.18,0.00020449,2]
[367223880,1750705853982,-992.24,0.00020449,2]
[367223881,1750705853992,-460.0,0.00020449,2]
[367223882,1750705854003,-460.0,0.00020449,2]
[367223883,1750705854014,-1117.77,0.00020449,2]
[367223884,1750705854025,-460.0,0.00020449,2]
[367223885,1750705854035,-460.0,0.00020449,2]
[367223886,1750705854046,-460.0,0.00020449,2]
[367223887,1750705854056,-460.0,0.00020449,2]
[367223888,1750705854071,-460.0,0.00020449,2]
[367223889,1750705854082,-460.0,0.00020449,2]
[367223890,1750705854093,-460.0,0.00020449,2]
[367223891,1750705854102,-460.0,0.00020449,2]
[367223892,1750705854113,-863.34,0.00020449,2]
[367223893,1750705854122,-460.0,0.00020449,2]
[367223894,1750705854134,-803.14,0.00020449,2]
[367223895,1750705854146,-709.44,0.00020449,2]
[367223896,1750705854158,-460.0,0.00020449,2]
[367223897,1750705854168,-1797.61,0.00020449,2]
[367223898,1750705854177,-555.9,0.00020449,2]
[367223899,1750705854187,-460.0,0.00020449,2]
[367223900,1750705854197,-566.49,0.00020449,2]
[367223901,1750705854208,-1232.13,0.00020449,2]
[367223902,1750705854218,-460.0,0.00020449,2]
[367223903,1750705854228,-460.0,0.00020449,2]
[367223904,1750705854240,-460.0,0.00020449,2]
[367223905,1750705854250,-460.0,0.00020449,2]
[367223906,1750705854261,-460.0,0.00020449,2]
[367223907,1750705854271,-602.21,0.00020449,2]
[367223908,1750705854281,-460.0,0.00020449,2]
[367223909,1750705854291,-776.07,0.00020449,2]
[367223910,1750705854300,-460.0,0.00020449,2]
[367223911,1750705854310,-542.52,0.0002045,2]
[367223912,1750705854320,-654.8,0.0002045,2]
[367223913,1750705854330,-1110.47,0.0002045,2]
[367223914,1750705854340,-494.07653692,0.0002045,2]
[367223915,1750705854349,-1626.65,0.0002045,2]
[367223916,1750705854360,-11093.92,0.0002045,2]
[367223917,1750705854374,-733.19,0.0002045,2]
[367223918,1750705854383,-1596.25,0.0002045,2]
[367223919,1750705854393,-1159.73,0.0002045,2]
[367223920,1750705854402,-1003.23,0.0002045,2]
[367223921,1750705854414,-2994.75,0.0002045,2]
[367223922,1750705854423,-1248.6,0.0002045,2]
[367223923,1750705854433,-460.0,0.0002045,2]
[367223924,1750705854444,-460.0,0.00020452,2]
[367223925,1750705854455,-542.52,0.00020452,2]
[367223926,1750705854464,-460.0,0.00020453,2]
[367223927,1750705854474,-460.0,0.00020453,2]
[367223928,1750705854484,-739.94,0.00020453,2]
[367223929,1750705854494,-1176.79,0.00020453,2]
[367223930,1750705854504,-460.0,0.00020453,2]
[367223931,1750705854559,-155.20103088,0.00020453,2]
[367223932,1750705854568,-460.0,0.00020453,2]
[367223933,1750705854578,-477.7,0.00020453,2]
[367223934,1750705854588,-460.0,0.00020453,2]
[367223935,1750705854597,-460.0,0.00020453,2]
[367223936,1750705854607,-500.0,0.00020453,2]
[367223937,1750705854616,-460.0,0.00020453,2]
[367223938,1750705854626,-1114.15,0.00020453,2]
[367223939,1750705854635,-563.78,0.00020453,2]
[367223940,1750705854646,-460.0,0.00020453,2]
[367223941,1750705854655,-460.0,0.00020453,2]
[367223942,1750705854665,-964.73,0.00020453,2]
[367223943,1750705854674,-460.0,0.00020453,2]
[367223944,1750705854683,-1128.03,0.00020453,2]
[367223945,1750705854692,-566.54,0.00020453,2]
[367223946,1750705854702,-460.0,0.00020453,2]
[367223947,1750705854711,-460.0,0.00020453,2]
[367223948,1750705854721,-460.0,0.00020453,2]
[367223949,1750705854730,-460.0,0.00020453,2]
[367223950,1750705854740,-530.04,0.00020453,2]
[367223951,1750705854749,-669.3,0.00020453,2]
[367223952,1750705854759,-1097.55,0.00020453,2]
[367223953,1750705854768,-540.0,0.00020453,2]
[367223954,1750705854778,-939.32,0.00020453,2]
[367223955,1750705854787,-460.0,0.00020454,2]
[367223956,1750705854797,-460.0,0.00020454,2]
[367223957,1750705854807,-460.0,0.00020454,2]
[367223958,1750705854816,-460.0,0.00020454,2]
[367223959,1750705854826,-460.0,0.00020454,2]
[367223960,1750705854836,-654.66,0.00020454,2]
[367223961,1750705854846,-460.0,0.00020454,2]
[367223962,1750705854855,-633.88,0.00020454,2]
[367223963,1750705854864,-3853.86,0.00020454,2]
[367223964,1750705854873,-2621.07,0.00020454,2]
[367223965,1750705854882,-460.0,0.00020454,2]
[367223966,1750705854892,-2268.84,0.00020454,2]
[367223967,1750705854902,-2717.21,0.00020454,2]
[367223968,1750705854911,-460.0,0.00020454,2]
[367223969,1750705854923,-4904.62,0.00020454,2]
[367223970,1750705854934,-4284.89,0.00020454,2]
[367223971,1750705854943,-460.0,0.00020454,2]
[367223972,1750705854955,-460.0,0.00020455,2]
[367223973,1750705854965,-460.0,0.00020455,2]
[367223974,1750705854975,-460.0,0.00020455,2]
[367223975,1750705854984,-460.0,0.00020455,2]
[367223976,1750705854994,-460.0,0.00020455,2]
[367223977,1750705855003,-821.74,0.00020455,2]
[367223978,1750705855012,-467.18,0.00020455,2]
[367223979,1750705855022,-460.0,0.00020455,2]
[367223980,1750705855031,-460.0,0.00020455,2]
[367223981,1750705855042,-460.0,0.00020455,2]
[367223982,1750705855053,-460.0,0.00020455,2]
[367223983,1750705855062,-478.38,0.00020455,2]
[367223984,1750705855073,-556.58,0.00020455,2]
[367223985,1750705855082,-460.0,0.00020455,2]
[367223986,1750705855093,-501.61,0.00020455,2]
[367223987,1750705855102,-237.78849566,0.00020455,2]
[367223988,1750705855112,-460.0,0.00020455,2]
[367223989,1750705855122,-838.22,0.00020455,2]
[367223990,1750705855132,-460.0,0.00020455,2]
[367223991,1750705855142,-460.0,0.00020455,2]
[367223992,1750705855151,-984.78,0.00020455,2]
[367223993,1750705855160,-460.0,0.00020455,2]
[367223994,1750705855170,-460.0,0.00020455,2]
[367223995,1750705855179,-440.0,0.00020455,2]
[367223996,1750705855188,-271.46239189,0.00020455,2]
[367223997,1750705855197,-460.0,0.00020455,2]
[367223998,1750705855207,-621.25,0.00020463,2]
[367223999,1750705855217,-460.0,0.00020463,2]
[367224000,1750705855226,-2354.68,0.00020463,2]
[367224001,1750705855236,-663.11,0.00020463,2]
[367224002,1750705855245,-508.6,0.00020463,2]
[367224003,1750705855255,-460.0,0.00020463,2]
[367224004,1750705855264,-460.0,0.00020463,2]
[367224005,1750705855273,-460.0,0.00020463,2]
[367224006,1750705855282,-460.0,0.00020463,2]
[367224007,1750705855292,-533.78,0.00020463,2]
[367224008,1750705855301,-460.0,0.00020463,2]
[367224009,1750705855310,-696.35,0.00020463,2]
[367224010,1750705855320,-647.41,0.00020463,2]
[367224011,1750705855329,-360.0,0.00020463,2]
[367224012,1750705855338,-492.31,0.00020463,2]
[367224013,1750705855348,-460.0,0.00020463,2]
[367224014,1750705855357,-498.71,0.00020463,2]
[367224015,1750705855370,-709.21,0.00020463,2]
[367224016,1750705855379,-460.0,0.00020463,2]
[367224017,1750705855389,-460.0,0.00020463,2]
[367224018,1750705855398,-460.0,0.00020468,2]
[367224019,1750705855407,-460.0,0.00020468,2]
[367224020,1750705855418,-1500.0,0.00020468,2]
[367224021,1750705855427,-1000.0,0.00020468,2]
[367224022,1750705855437,-1500.0,0.00020468,2]
[367224023,1750705855448,-500.0,0.00020473,2]
[367224024,1750705855458,-160.0,0.00020477,2]
[367224025,1750705855467,-230.18214666,0.00020477,2]
[367224026,1750705855476,-213.63163053,0.00020477,2]
[367224027,1750705855485,-425.08510397,0.00020477,2]
[367224028,1750705855495,-160.0,0.00020477,2]
[367224029,1750705855504,-12553.69357174,0.00020477,2]
[367224030,1750705855513,-160.0,0.00020477,2]
[367224031,1750705855522,-160.0,0.00020477,2]
[367224032,1750705855532,-846.53928378,0.00020477,2]
[367224033,1750705855542,-160.0,0.00020477,2]
[367224034,1750705855551,-836.70095952,0.00020477,2]
[367224035,1750705855560,-160.0,0.00020477,2]
[367224036,1750705855569,-160.0,0.00020477,2]
[367224037,1750705855579,-151.0,0.000205,4]
[367224038,1750705855588,-500.0,0.00020521,2]
[367224039,1750705855598,-1000.0,0.00020521,2]
[367224040,1750705855607,-500.0,0.00020547,7]
[367224041,1750705855617,-1120.17,0.000206,2]
[367224042,1750705855627,-1883.64,0.000206,2]
[367224043,1750705855636,-11048.74950694,0.000206,2]
[367224044,1750705856348,-0.00415024,0.00019268,2]
[367224045,1750705856656,-460.0,0.00019266,2]
[367224046,1750705856666,-57.32432214,0.00019268,2]
[367224047,1750705857617,-0.09238421,0.00019264,2]
[367224048,1750705870351,552.5559127,0.0001856,2]
[367224049,1750705891388,2737.6254339,0.00018337,2]
[367224050,1750706109241,-151.0,0.00019166,2]
[367224051,1750706152187,-166.99228383,0.00019153,2]
[367224052,1750706152212,-166.99228383,0.00019163,2]
[367224053,1750706152235,-326.01543234,0.00019166,2]
[367224054,1750706153371,-163.82220355,0.00019166,2]
[367224055,1750706180414,24900.0,0.00018263,2]
[367224057,1750706239918,-154.0,0.00019153,3]
[367224058,1750706282975,163.8222036,0.00018261,2]
[367224059,1750706287575,210.850326,0.00018262,2]
[367224060,1750706365474,-6.68617082,0.00019153,3]
[367224061,1750706365497,-197.38922078,0.00019162,2]
[367224063,1750706539831,358.806109,0.00018261,2]
[367224067,1750706616015,333.0,0.000191,2]
[367224068,1750706720249,243.65669,0.00013699,2]
[367224071,1750706793436,-154.15271675,0.00019159,2]
[367224075,1750706841104,-1124.11931628,0.00019159,2]
[367224076,1750706841126,-185.776433,0.00019178,2]
[367224077,1750706841148,-160.0,0.00019252,2]
[367224078,1750706841170,-300.0,0.00019257,2]
[367224079,1750706841193,-376.21045946,0.00019258,2]
[367224080,1750706841216,-500.0,0.00019258,2]
[367224081,1750706841240,-284.44052844,0.00019258,2]
[367224082,1750706850118,-215.55947156,0.00019258,2]
[367224083,1750706850139,-37.09353996,0.00019258,2]
[367224093,1750707019516,157.43,0.0001911,2]
[367224134,1750707037240,-500.0,0.00019256,2]
[367224135,1750707037250,-13.55,0.00019256,2]
[367224136,1750707037261,-486.45,0.00019256,2]
[367224137,1750707037270,-500.0,0.00019256,2]
[367224139,1750707037279,-500.0,0.00019256,2]
[367224141,1750707037289,-607.24859371,0.00019256,2]
[367224143,1750707037298,-216.6299957,0.00019256,2]
[367224145,1750707037308,-500.0,0.00019256,2]
[367224147,1750707037316,-500.0,0.00019256,2]
[367224149,1750707037326,-500.0,0.00019256,2]
[367224151,1750707037335,-500.0,0.00019256,2]
[367224153,1750707037343,-500.0,0.00019256,2]
[367224155,1750707037353,-500.0,0.00019256,2]
[367224157,1750707037362,-500.0,0.00019256,2]
[367224159,1750707037371,-500.0,0.00019256,2]
[367224161,1750707037379,-500.0,0.00019256,2]
[367224163,1750707037389,-500.0,0.00019256,2]
[367224165,1750707037398,-500.0,0.00019256,2]
[367224167,1750707037407,-500.0,0.00019256,2]
[367224169,1750707037416,-355.70418089,0.00019256,2]
[367224171,1750707037426,-500.0,0.00019256,2]
[367224173,1750707037435,-500.0,0.00019256,2]
[367224175,1750707037444,-226.44734931,0.00019256,2]
[367224177,1750707037454,-500.0,0.00019256,2]
[367224179,1750707037463,-500.0,0.00019256,2]
[367224181,1750707037473,-500.0,0.00019256,2]
[367224183,1750707037482,-500.0,0.00019256,2]
[367224185,1750707037491,-500.0,0.00019256,2]
[367224187,1750707037500,-500.0,0.00019256,2]
[367224189,1750707037511,-500.0,0.00019256,2]
[367224191,1750707037520,-500.0,0.00019256,2]
[367224193,1750707037529,-500.0,0.00019256,2]
[367224195,1750707037539,-500.0,0.00019256,2]
[367224197,1750707037547,-500.0,0.00019256,2]
[367224199,1750707037557,-500.0,0.00019256,2]
[367224201,1750707037566,-1378.75959763,0.00019256,2]
[367224202,1750707037575,-1378.75959763,0.00019256,2]
[367224204,1750707037584,-1378.75959763,0.00019256,2]
[367224207,1750707037594,-1378.75959763,0.00019256,2]
[367224208,1750707037604,-1378.75959763,0.00019256,2]
[367224210,1750707037613,-520.44655634,0.00019256,2]
[367224212,1750707037622,-1378.75959763,0.00019256,2]
[367224214,1750707037632,-1378.75959763,0.00019256,2]
[367224217,1750707037641,-961.44026201,0.00019256,2]
[367224335,1750707038626,-417.31933562,0.00019256,2]
[367224337,1750707038636,-1378.75959763,0.00019256,2]
[367224338,1750707038645,-500.0,0.00019256,2]
[367224340,1750707038655,-1378.75959763,0.00019256,2]
[367224342,1750707038664,-500.0,0.00019256,2]
[367224343,1750707038673,-1378.75959763,0.00019256,2]
[367224344,1750707038682,-1378.75959763,0.00019256,2]
[367224345,1750707038692,-1378.75959763,0.00019256,2]
[367224346,1750707038701,-1378.75959763,0.00019256,2]
[367224347,1750707038710,-1378.75959763,0.00019256,2]
[367224348,1750707038719,-1378.75959763,0.00019256,2]
[367224349,1750707038729,-1378.75959763,0.00019256,2]
[367224350,1750707038740,-1378.75959763,0.00019256,2]
[367224351,1750707038749,-1378.75959763,0.00019256,2]
[367224352,1750707038758,-1378.75959763,0.00019256,2]
[367224353,1750707038768,-1378.75959763,0.00019256,2]
[367224354,1750707038779,-391.4393939,0.00019256,2]
[367224355,1750707038801,-987.32020373,0.00019256,2]
[367224356,1750707038813,-300.0,0.00019256,2]
[367224357,1750707038823,-300.0,0.00019256,2]
[367224358,1750707038832,-1200.0,0.00019256,2]
[367224359,1750707038843,-300.0,0.00019256,2]
[367224360,1750707038853,-50000.0,0.00019257,2]
[367224361,1750707038862,-460.0,0.00019257,2]
[367224362,1750707038871,-460.0,0.00019257,2]
[367224363,1750707038882,-460.0,0.00019257,2]
[367224364,1750707038892,-460.0,0.00019257,2]
[367224365,1750707038903,-460.0,0.00019257,2]
[367224366,1750707038912,-460.0,0.00019257,2]
[367224367,1750707038922,-460.0,0.00019257,2]
[367224368,1750707038932,-300.0,0.00019258,2]
[367224369,1750707038942,-460.0,0.00019258,2]
[367224370,1750707038953,-280.78734991,0.00019258,2]
[367224371,1750707038962,-460.0,0.00019258,2]
[367224372,1750707038971,-460.0,0.00019258,2]
[367224373,1750707038982,-460.0,0.00019258,2]
[367224374,1750707038992,-460.0,0.00019258,2]
[367224375,1750707039002,-460.0,0.00019258,2]
[367224376,1750707039012,-460.0,0.00019258,2]
[367224377,1750707039023,-2648.3,0.00019258,2]
[367224378,1750707039033,-2744.44,0.00019258,2]
[367224379,1750707039043,-500.0,0.00019259,2]
[367224380,1750707039054,-460.0,0.00019259,2]
[367224382,1750707039064,-460.0,0.00019259,2]
[367224384,1750707039074,-460.0,0.00019259,2]
[367224386,1750707039084,-2378.74,0.00019259,2]
[367224388,1750707039093,-835.11,0.00019259,2]
[367224390,1750707039102,-460.99,0.00019259,2]
[367224392,1750707039111,-460.0,0.00019259,2]
[367224395,1750707039121,-460.0,0.00019259,2]
[367224397,1750707039130,-1874.63,0.00019259,2]
[367224398,1750707039139,-3339.64,0.00019259,2]
[367224401,1750707039148,-596.66,0.00019259,2]
[367224403,1750707039157,-1527.92,0.00019259,2]
[367224405,1750707039166,-1339.25,0.00019259,2]
[367224407,1750707039175,-843.39,0.00019259,2]
[367224409,1750707039184,-840.53,0.00019259,2]
[367224411,1750707039193,-460.0,0.00019259,2]
[367224413,1750707039202,-1113.1,0.00019259,2]
[367224415,1750707039211,-987.19,0.00019259,2]
[367224417,1750707039221,-460.0,0.00019259,2]
[367224419,1750707039230,-500.0,0.00019259,2]
[367224421,1750707039239,-500.0,0.00019259,2]
[367224423,1750707039248,-500.0,0.00019259,2]
[367224425,1750707039257,-483.08,0.00019259,2]
[367224427,1750707039266,-460.0,0.0001926,2]
[367224429,1750707039275,-460.0,0.0001926,2]
[367224431,1750707039285,-460.0,0.0001926,2]
[367224433,1750707039294,-460.0,0.0001926,2]
[367224435,1750707039305,-460.0,0.0001926,2]
[367224437,1750707039315,-460.0,0.0001926,2]
[367224438,1750707039325,-460.0,0.0001926,2]
[367224439,1750707039335,-460.0,0.0001926,2]
[367224441,1750707039344,-614.13,0.0001926,2]
[367224443,1750707039354,-460.0,0.0001926,2]
[367224445,1750707039363,-460.0,0.0001926,2]
[367224448,1750707039373,-460.0,0.0001926,2]
[367224450,1750707039382,-460.0,0.0001926,2]
[367224451,1750707039392,-460.0,0.0001926,2]
[367224453,1750707039401,-460.0,0.0001926,2]
[367224455,1750707039410,-500.0,0.0001926,2]
[367224457,1750707039419,-460.0,0.0001926,2]
[367224459,1750707039428,-460.0,0.0001926,2]
[367224461,1750707039437,-460.0,0.0001926,2]
[367224463,1750707039446,-460.0,0.0001926,2]
[367224465,1750707039455,-460.0,0.0001926,2]
[367224467,1750707039464,-460.0,0.0001926,2]
[367224469,1750707039473,-460.0,0.0001926,2]
[367224471,1750707039483,-1831.18,0.0001926,2]
[367224473,1750707039492,-532.28,0.0001926,2]
[367224475,1750707039502,-664.54,0.0001926,2]
[367224477,1750707039512,-460.0,0.0001926,2]
[367224479,1750707039524,-460.0,0.0001926,2]
[367224481,1750707039532,-549.41,0.0001926,2]
[367224482,1750707039542,-460.0,0.0001926,2]
[367224483,1750707039553,-436.42168427,0.0001926,2]
[367224484,1750707039563,-460.0,0.0001926,2]
[367224485,1750707039573,-1376.04,0.0001926,2]
[367224486,1750707039582,-460.0,0.0001926,2]
[367224487,1750707039592,-904.86,0.0001926,2]
[367224488,1750707039601,-460.0,0.0001926,2]
[367224489,1750707039610,-460.0,0.0001926,2]
[367224490,1750707039619,-460.0,0.0001926,2]
[367224491,1750707039628,-870.43,0.0001926,2]
[367224492,1750707039638,-500.0,0.0001926,2]
[367224493,1750707039647,-460.0,0.0001926,2]
[367224494,1750707039656,-460.0,0.0001926,2]
[367224495,1750707039666,-762.46,0.0001926,2]
[367224496,1750707039676,-761.2,0.0001926,2]
[367224497,1750707039685,-460.0,0.0001926,2]
[367224498,1750707039695,-460.0,0.0001926,2]
[367224499,1750707039704,-460.0,0.0001926,2]
[367224500,1750707039714,-714.87,0.0001926,2]
[367224501,1750707039723,-3694.91,0.0001926,2]
[367224502,1750707039732,-460.0,0.0001926,2]
[367224503,1750707039746,-487.35,0.0001926,2]
[367224504,1750707039755,-460.0,0.0001926,2]
[367224505,1750707039763,-460.0,0.0001926,2]
[367224506,1750707039773,-460.0,0.0001926,2]
[367224507,1750707039782,-460.0,0.0001926,2]
[367224508,1750707039791,-460.0,0.0001926,2]
[367224509,1750707039800,-460.0,0.0001926,2]
[367224510,1750707039810,-602.64,0.0001926,2]
[367224511,1750707039819,-460.0,0.0001926,2]
[367224512,1750707039829,-460.0,0.0001926,2]
[367224513,1750707039838,-1519.11,0.0001926,2]
[367224514,1750707039847,-1033.82,0.0001926,2]
[367224515,1750707039857,-460.0,0.0001926,2]
[367224516,1750707039866,-460.0,0.0001926,2]
[367224517,1750707039875,-460.0,0.0001926,2]
[367224518,1750707039884,-666.37,0.0001926,2]
[367224519,1750707039894,-500.0,0.0001926,2]
[367224520,1750707039904,-460.0,0.0001926,2]
[367224521,1750707039913,-483.72,0.0001926,2]
[367224522,1750707039922,-460.0,0.0001926,2]
[367224523,1750707039932,-460.0,0.0001926,2]
[367224524,1750707039941,-460.0,0.0001926,2]
[367224525,1750707039951,-460.0,0.0001926,2]
[367224526,1750707039961,-460.0,0.0001926,2]
[367224527,1750707039970,-460.0,0.0001926,2]
[367224528,1750707039980,-460.0,0.0001926,2]
[367224529,1750707039989,-236.16913512,0.0001926,2]
[367224530,1750707039998,-460.0,0.0001926,2]
[367224531,1750707040007,-460.0,0.0001926,2]
[367224532,1750707040016,-460.0,0.0001926,2]
[367224533,1750707040025,-460.0,0.0001926,2]
[367224534,1750707040036,-460.69209093,0.00019261,2]
[367224535,1750707040045,-460.0,0.00019261,2]
[367224536,1750707040054,-460.0,0.00019261,2]
[367224537,1750707040063,-460.0,0.00019261,2]